bitfinex/quotes_SOLUSD_20250915
["timestamp","ask_amount","ask_price","bid_price","bid_amount"]
[1757928122637,4.94639361,234.39,234.32,35.14]
[1757928122834,26.0,234.38,234.32,35.14]
[1757928123013,0.03,234.37,234.34,0.14216157]
[1757928123216,0.03,234.37,234.35,0.69]
[1757928123417,0.03,234.37,234.35,35.14]
[1757928123737,0.03,234.37,234.36,0.14216157]
[1757928124318,0.03,234.37,234.36,0.83216157]
[1757928124732,0.03,234.37,234.36,0.14216157]
[1757928125251,0.03,234.37,234.36,5.09910132]
[1757928125420,0.03,234.37,234.36,4.89280132]
[1757928127340,0.03,234.37,234.36,18.48839533]
[1757928127633,0.03,234.37,234.36,18.6305569]
[1757928130621,0.03,234.37,234.36,53.6305569]
[1757928132540,0.03,234.37,234.36,53.6105569]
[1757928133717,0.03,234.37,234.36,18.6305569]
[1757928133853,0.03,234.37,234.36,34.96]
[1757928134357,0.03,234.37,234.36,49.38775558]
[1757928134924,0.03,234.37,234.36,52.96469533]
[1757928135153,0.03,234.37,234.36,48.69775558]
[1757928135531,0.03,234.37,234.36,49.38775558]
[1757928135837,0.03,234.37,234.36,53.65469533]
[1757928139150,0.1,234.43,234.37,13.73775558]
[1757928139369,0.68,234.54,234.4,0.14216157]
[1757928139552,0.68,234.54,234.42,13.73775558]
[1757928139762,0.68,234.54,234.44,13.73775558]
[1757928139949,0.68,234.54,234.45,49.82855619]
[1757928140342,0.68,234.54,234.47,0.14216157]
[1757928140677,0.68,234.54,234.49,0.14216157]
[1757928140856,0.68,234.53,234.49,0.14216157]
[1757928141058,4.26349423,234.55,234.49,0.14216157]
[1757928141059,0.68,234.52,234.49,0.14216157]
[1757928141665,4.26275629,234.59,234.49,0.14216157]
[1757928141860,0.68,234.54,234.5,4.26439232]
[1757928143170,0.68,234.56,234.53,34.9]
[1757928143370,13.59559401,234.64,234.54,34.92]
[1757928143680,0.68,234.58,234.55,34.92]
[1757928143873,26.0,234.61,234.48,0.14216157]
[1757928143874,4.2633015,234.56,234.48,0.14216157]
[1757928144170,0.68,234.57,234.49,30.31]
[1757928144360,0.68,234.57,234.5,29.68]
[1757928144564,0.68,234.57,234.51,0.14216157]
[1757928145060,0.68,234.61,234.52,0.69]
[1757928145374,0.68,234.6,234.53,26.76]
[1757928145876,26.0,234.6,234.54,4.26366504]
[1757928146182,0.68,234.59,234.54,4.26366504]
[1757928146559,30.26242579,234.61,234.54,4.26366504]
[1757928146560,0.68,234.58,234.54,4.26366504]
[1757928146869,10.65316323,234.68,234.55,0.14216157]
[1757928147071,0.68,234.65,234.57,0.14216157]
[1757928147643,4.2611345,234.68,234.59,0.14216157]
[1757928148067,0.68,234.67,234.6,4.26257459]
[1757928148372,4.26093996,234.69,234.61,35.02]
[1757928148700,26.68,234.68,234.61,35.02]
[1757928148877,0.68,234.67,234.62,35.0]
[1757928150044,26.0,234.69,234.62,49.9176252]
[1757928150248,26.0,234.69,234.63,35.67]
[1757928150456,26.68,234.71,234.64,34.98]
[1757928150675,26.0,234.71,234.65,0.69]
[1757928151077,0.68,234.74,234.65,0.69]
[1757928151254,20.0,234.86,234.65,0.69]
[1757928151255,0.78,234.76,234.65,0.69]
[1757928151454,5.03967161,234.76,234.63,0.86216157]
[1757928151663,26.0,234.73,234.64,34.98]
[1757928151881,0.67,234.72,234.64,34.98]
[1757928152559,0.1,234.76,234.65,0.86216157]
[1757928153265,0.67,234.75,234.66,34.96]
[1757928153567,0.1,234.76,234.67,0.86216157]
[1757928153771,0.1,234.76,234.69,0.14216157]
[1757928153965,0.1,234.76,234.7,0.72]
[1757928154170,0.1,234.76,234.71,4.26057688]
[1757928154370,0.1,234.76,234.72,0.72]
[1757928154684,0.1,234.76,234.73,35.72]
[1757928154891,0.1,234.76,234.74,34.98]
[1757928155067,0.1,234.76,234.74,35.7]
[1757928155265,0.1,234.76,234.75,0.86216157]
[1757928156201,0.1,234.76,234.75,0.72]
[1757928156483,0.1,234.76,234.73,35.72]
[1757928156682,0.1,234.76,234.74,35.0]
[1757928156995,0.1,234.76,234.74,0.72]
[1757928157164,0.1,234.76,234.75,35.02]
[1757928157705,0.1,234.76,234.74,0.72]
[1757928157870,0.1,234.76,234.71,0.72]
[1757928158077,0.77,234.76,234.72,35.0]
[1757928158283,0.1,234.76,234.73,35.0]
[1757928158469,0.1,234.76,234.74,0.72]
[1757928158671,0.1,234.76,234.75,0.72]
[1757928159380,0.67,234.86,234.75,0.86216157]
[1757928159677,0.67,234.89,234.76,0.14216157]
[1757928159995,4.25622575,234.95,234.73,35.0]
[1757928159996,14.89678757,234.95,234.78,0.14216157]
[1757928160196,4.25658706,234.93,234.81,4.2587624]
[1757928160384,26.0,234.9,234.81,4.9787624]
[1757928160694,0.67,234.9,234.81,4.9787624]
[1757928160867,0.67,234.9,234.82,35.0]
[1757928161064,26.67,234.9,234.82,35.0]
[1757928161572,3.72762752,234.95,234.83,0.86216157]
[1757928161790,0.67,234.94,234.84,34.98]
[1757928162099,0.67,234.93,234.82,0.72]
[1757928162301,4.25694947,234.91,234.81,35.0]
[1757928162469,26.0,234.89,234.81,35.0]
[1757928162672,26.67,234.88,234.81,35.0]
[1757928163075,26.67,234.88,234.75,0.72]
[1757928163076,0.67,234.87,234.75,0.72]
[1757928163277,0.67,234.87,234.76,22.78]
[1757928163496,26.0,234.84,234.77,22.78]
[1757928163717,0.67,234.83,234.75,34.98]
[1757928163880,0.67,234.83,234.73,0.72]
[1757928164076,26.0,234.84,234.74,34.98]
[1757928164391,4.25803704,234.85,234.75,4.9798509]
[1757928164694,0.67,234.86,234.77,0.14216157]
[1757928164903,4.25780175,234.87,234.77,0.14216157]
[1757928165076,4.25780175,234.87,234.78,0.72]
[1757928165400,0.67,234.88,234.78,0.72]
[1757928165578,0.67,234.88,234.79,35.0]
[1757928165777,26.67,234.87,234.75,0.72]
[1757928165980,26.67,234.87,234.79,34.98]
[1757928166281,4.25803704,234.85,234.79,34.98]
[1757928166488,4.25803704,234.85,234.76,0.72]
[1757928166693,15.57312965,234.85,234.76,35.7]
[1757928166873,15.57312965,234.85,234.76,39.95961244]
[1757928167068,4.92803704,234.85,234.76,39.95961244]
[1757928167297,30.92803704,234.85,234.77,0.72]
[1757928168498,15.57312965,234.85,234.77,0.72]
[1757928168669,15.57312965,234.85,234.76,34.92]
[1757928168877,0.67,234.84,234.72,0.72]
[1757928169791,26.0,234.83,234.72,0.72]
[1757928169996,0.69,234.82,234.72,0.72]
[1757928170701,0.69,234.82,234.73,4.40237543]
[1757928170900,4.25857393,234.83,234.74,0.69]
[1757928171104,4.27739413,234.89,234.74,0.69]
[1757928171278,0.69,234.88,234.75,0.14216157]
[1757928171478,0.69,234.88,234.77,0.14216157]
[1757928171679,0.69,234.88,234.78,35.61]
[1757928172104,0.69,234.87,234.78,35.61]
[1757928172481,30.9470919,234.91,234.8,4.25894378]
[1757928172677,30.9470919,234.91,234.81,0.69]
[1757928172872,4.9470919,234.91,234.81,0.69]
[1757928173297,26.0,234.9,234.81,0.69]
[1757928173798,0.69,234.91,234.81,0.69]
[1757928174208,0.69,234.91,234.79,4.25904552]
[1757928174209,4.94695734,234.91,234.79,4.25904552]
[1757928174385,0.69,234.9,234.79,0.14216157]
[1757928174585,4.25731193,234.89,234.79,0.14216157]
[1757928174806,0.69,234.88,234.79,40.01125912]
[1757928175309,26.69,234.88,234.79,40.01125912]
[1757928175814,26.0,234.89,234.8,0.69]
[1757928176187,26.0,234.92,234.81,35.02216157]
[1757928176403,26.0,234.92,234.83,0.14216157]
[1757928176577,26.0,234.92,234.84,0.69]
[1757928176780,4.25683951,234.92,234.84,0.69]
[1757928176992,4.94683951,234.92,234.84,0.69]
[1757928177399,15.58876016,234.92,234.82,4.25845946]
[1757928177701,0.69,234.91,234.82,34.88]
[1757928177901,26.0,234.88,234.82,34.88]
[1757928178103,26.69,234.88,234.82,34.88]
[1757928178984,14.28559401,234.87,234.77,0.69]
[1757928179477,0.69,234.9,234.77,4.94946692]
[1757928179683,26.69,234.9,234.78,0.83216157]
[1757928179900,26.69,234.9,234.79,34.98]
[1757928180202,26.69,234.92,234.8,0.83216157]
[1757928180411,26.69,234.92,234.82,0.14216157]
[1757928180607,26.69,234.92,234.83,0.69]
[1757928180811,4.94623587,234.95,234.83,0.69]
[1757928181111,0.69,234.95,234.84,14.90376426]
[1757928181293,10.63930749,234.98,234.84,14.90376426]
[1757928181294,3.73349575,234.99,234.85,0.83216157]
[1757928181493,13.59559401,234.98,234.85,0.83216157]
[1757928181907,26.0,234.95,234.86,34.96]
[1757928182120,14.27559401,234.98,234.87,0.68]
[1757928182286,4.93478115,235.03,234.88,0.14216157]
[1757928182609,4.93478115,235.03,234.9,0.14216157]
[1757928182905,4.25513807,235.01,234.91,4.25694947]
[1757928183106,0.68,235.0,234.9,0.68]
[1757928183413,0.68,235.02,234.91,0.14216157]
[1757928183591,0.68,235.02,234.93,0.14216157]
[1757928184315,0.68,235.02,234.94,0.68]
[1757928184498,0.68,235.02,234.93,0.14216157]
[1757928184901,26.0,234.98,234.91,0.68]
[1757928185087,26.0,235.0,234.92,0.14216157]
[1757928185286,4.93498205,235.02,234.91,0.68]
[1757928185287,13.59559401,235.01,234.91,0.68]
[1757928185486,0.68,235.0,234.91,0.68]
[1757928185687,0.68,235.04,234.92,0.14216157]
[1757928185883,4.33066281,235.06,234.94,0.14216157]
[1757928186104,0.68,235.06,234.96,0.14216157]
[1757928186414,4.27739413,235.14,234.97,0.68]
[1757928186710,39.59559401,235.05,234.94,0.82216157]
[1757928187010,4.25477598,235.03,234.95,4.25622472]
[1757928187305,0.68,235.04,234.95,4.25622472]
[1757928187493,4.93477598,235.03,234.95,4.25622472]
[1757928188010,13.59559401,235.01,234.91,0.14216157]
[1757928188213,0.68,235.02,234.91,0.14216157]
[1757928188214,0.68,235.02,234.93,0.14216157]
[1757928188617,14.27559401,235.04,234.94,0.68]
[1757928188818,40.27559401,235.04,234.93,0.68]
[1757928188990,4.25495702,235.02,234.93,0.68]
[1757928189196,4.93495702,235.02,234.93,0.68]
[1757928189408,4.93495702,235.02,234.93,4.93655381]
[1757928189615,14.27559401,235.01,234.91,4.39893421]
[1757928189911,14.27559401,235.01,234.91,4.25677264]
[1757928190318,14.27559401,235.01,234.92,0.68]
[1757928190489,0.68,235.01,234.92,0.68]
[1757928190907,0.68,235.01,234.9,0.82216157]
[1757928191216,0.68,235.04,234.9,31.07929226]
[1757928191414,0.68,235.08,234.92,0.14216157]
[1757928191599,0.68,235.08,234.94,0.14216157]
[1757928191796,0.68,235.08,234.95,0.68]
[1757928191992,26.0,235.07,234.95,0.68]
[1757928192291,0.68,235.06,234.95,0.68]
[1757928192608,13.59559401,235.08,234.95,0.68]
[1757928192790,0.68,235.07,234.95,0.68]
[1757928192991,26.68,235.1,234.96,0.14216157]
[1757928193191,4.9335093,235.1,234.97,15.57551857]
[1757928193391,0.68,235.09,234.99,0.14216157]
[1757928193702,0.68,235.09,234.99,0.82216157]
[1757928195297,4.93370875,235.09,235.0,4.25531914]
[1757928195492,39.59559401,235.12,235.0,14.89361701]
[1757928195712,39.59559401,235.12,235.01,0.68]
[1757928195713,13.59559401,235.11,235.01,0.68]
[1757928195904,0.68,235.1,235.01,0.68]
[1757928196813,0.68,235.1,235.0,4.25531914]
[1757928197019,0.68,235.09,234.99,5.07764995]
[1757928197513,13.59559401,235.11,235.01,0.14216157]
[1757928197721,0.68,235.1,235.01,0.14216157]
[1757928198409,13.59559401,235.11,235.02,0.68]
[1757928198721,14.27559401,235.11,235.02,0.68]
[1757928199403,26.0,235.12,235.03,4.25477598]
[1757928199606,26.0,235.12,235.04,0.68]
[1757928199798,0.68,235.12,235.04,0.68]
[1757928200211,13.59559401,235.13,235.04,0.68]
[1757928200909,13.59559401,235.11,235.02,4.93495333]
[1757928201095,13.59559401,235.11,235.03,0.68]
[1757928201299,13.59559401,235.11,235.04,4.25459496]
[1757928201495,0.03,235.11,235.05,0.68]
[1757928201707,0.03,235.11,235.06,0.14216157]
[1757928201905,0.03,235.11,235.08,0.14216157]
[1757928202123,0.03,235.11,235.05,0.68]
[1757928202320,0.03,235.11,235.07,0.68]
[1757928202506,0.03,235.11,235.04,4.25459496]
[1757928202705,0.68,235.1,235.03,4.25476014]
[1757928202905,0.03,235.11,235.04,0.82216157]
[1757928203502,0.03,235.11,235.05,4.25441395]
[1757928204411,0.03,235.11,235.06,0.68]
[1757928204806,0.03,235.11,235.07,0.68]
[1757928204995,0.03,235.11,235.1,0.14216157]
[1757928205414,0.03,235.11,235.1,0.82216157]
[1757928205604,0.03,235.11,235.1,5.07567071]
[1757928207223,0.03,235.11,235.1,31.07567071]
[1757928207415,0.03,235.11,235.1,5.07567071]
[1757928207603,0.03,235.11,235.1,31.07567071]
[1757928208193,0.03,235.11,235.1,5.07567071]
[1757928208398,0.68,235.29,235.14,26.0]
[1757928208614,0.68,235.29,235.16,0.14216157]
[1757928208818,0.68,235.29,235.18,0.14216157]
[1757928209014,0.68,235.29,235.19,0.68]
[1757928209402,0.68,235.29,235.16,0.14216157]
[1757928209607,4.25025501,235.28,235.18,0.14216157]
[1757928209807,0.68,235.27,235.18,0.14216157]
[1757928210424,0.68,235.27,235.18,0.82216157]
[1757928211028,26.0,235.33,235.18,0.14216157]
[1757928211330,13.59559401,235.32,235.18,0.14216157]
[1757928211625,4.24971314,235.31,235.19,14.88158509]
[1757928212232,13.59559401,235.3,235.19,4.25188145]
[1757928212604,26.0,235.23,235.12,4.25301738]
[1757928213026,13.59559401,235.22,235.12,4.25301738]
[1757928213219,13.59559401,235.18,234.93,20.0]
[1757928213421,13.59559401,235.18,234.96,35.32]
[1757928213602,13.59559401,235.16,234.98,10.63920333]
[1757928214723,13.59559401,235.12,234.98,10.63920333]
[1757928215611,13.59559401,235.1,234.98,10.63920333]
[1757928216208,13.59559401,235.06,234.97,4.25586245]
[1757928216731,13.59559401,235.06,234.94,4.25640589]
[1757928217402,26.0,235.08,234.95,0.66]
[1757928217728,26.0,235.08,234.97,0.14216157]
[1757928218237,13.59559401,235.07,234.96,14.89615253]
[1757928218598,13.59559401,235.07,234.96,4.25604358]
[1757928219033,13.59559401,235.07,234.92,35.32]
[1757928219214,26.0,235.0,234.8,4.91894378]
[1757928219528,18.16909925,234.99,234.83,26.0]
[1757928219725,26.0,234.99,234.84,3.94]
[1757928220047,26.0,235.04,234.85,0.66]
[1757928220325,13.59559401,235.03,234.86,0.14216157]
[1757928220631,26.0,235.04,234.88,0.14216157]
[1757928220928,13.59559401,235.03,234.89,0.66]
[1757928221108,13.59559401,235.03,234.97,0.06]
[1757928221628,17.85043452,235.03,234.97,0.06]
[1757928221838,13.59559401,234.99,234.97,0.06]
[1757928223108,39.59559401,234.98,234.97,0.06]
[1757928225026,39.59559401,234.93,234.8,10.64701843]
[1757928225215,35.38,234.92,234.8,11.29701843]
[1757928225429,13.59559401,234.91,234.8,11.29701843]
[1757928226015,13.59559401,234.91,234.8,15.55596221]
[1757928227038,17.85257257,234.91,234.8,14.90596221]
[1757928227242,13.59559401,234.91,234.8,14.90596221]
[1757928228111,26.0,234.98,234.81,0.79216157]
[1757928228313,26.0,234.93,234.81,0.79216157]
[1757928228516,13.59559401,234.96,234.81,0.79216157]
[1757928229927,13.59559401,234.97,234.81,0.79216157]
[1757928230142,13.59559401,234.94,234.83,0.14216157]
[1757928230717,13.59559401,234.94,234.82,15.55503364]
[1757928231131,35.32,234.97,234.83,0.79216157]
[1757928231334,39.59559401,234.96,234.83,0.79216157]
[1757928232239,39.59559401,234.96,234.84,14.90376426]
[1757928232428,43.85169386,234.96,234.84,14.90376426]
[1757928232616,39.59559401,234.96,234.85,0.14216157]
[1757928232813,43.8517597,234.96,234.84,14.90376426]
[1757928233014,39.59559401,234.96,234.84,14.90376426]
[1757928233213,74.89559401,234.96,234.84,14.90376426]
[1757928233446,39.59559401,234.96,234.84,14.90376426]
[1757928233650,3.80594081,235.07,234.85,0.79216157]
[1757928233835,35.3,235.06,234.85,0.79216157]
[1757928234153,13.59559401,235.07,234.85,0.79216157]
[1757928234324,13.59559401,235.03,234.87,0.14216157]
[1757928234523,13.59559401,235.06,234.89,0.14216157]
[1757928234740,26.0,235.02,234.91,0.14216157]
[1757928235258,35.3,235.09,234.93,0.14216157]
[1757928235555,38.95049834,235.13,234.95,0.14216157]
[1757928235724,13.59559401,235.12,234.95,0.14216157]
[1757928236144,26.0,235.09,234.95,0.14216157]
[1757928236328,13.59559401,235.1,234.97,0.14216157]
[1757928236650,39.59559401,235.1,234.97,0.14216157]
[1757928238021,26.0,235.07,234.96,14.89615253]
[1757928238227,13.59559401,235.06,234.96,14.89615253]
[1757928238543,0.72,235.05,234.96,10.64010895]
[1757928238946,0.72,235.05,234.97,0.14216157]
[1757928240147,0.72,235.05,234.98,14.89488466]
[1757928240642,26.0,235.06,234.98,14.89488466]
[1757928240947,26.0,235.06,234.98,4.25568133]
[1757928240948,0.72,235.04,234.98,4.25568133]
[1757928241136,30.2542375,235.06,234.96,4.25587768]
[1757928241137,0.72,235.03,234.96,4.25587768]
[1757928241322,0.72,235.03,234.96,14.89598663]
[1757928241526,13.59559401,235.05,234.96,4.25587768]
[1757928241835,0.66,235.04,234.96,4.25587768]
[1757928242042,0.66,235.03,234.94,4.25623187]
[1757928242240,13.59559401,235.01,234.92,4.25660454]
[1757928242438,0.66,235.0,234.9,4.25699146]
[1757928242645,13.59559401,234.98,234.9,4.25699146]
[1757928242825,13.59559401,234.96,234.86,10.64445803]
[1757928243024,0.66,234.95,234.86,10.64445803]
[1757928243849,0.66,234.94,234.84,4.25821836]
[1757928244156,13.59559401,234.89,234.8,0.06]
[1757928244453,26.0,234.9,234.8,0.06]
[1757928244454,13.59559401,234.87,234.8,0.06]
[1757928244849,13.59559401,234.85,234.8,0.06]
[1757928245034,26.0,234.86,234.8,4.31887699]
[1757928245353,26.0,234.88,234.81,0.14216157]
[1757928245929,26.0,234.88,234.82,4.25858104]
[1757928246331,26.0,234.88,234.82,14.90503364]
[1757928247643,0.66,234.92,234.82,15.60503364]
[1757928247847,0.66,234.92,234.83,0.84216157]
[1757928248046,0.66,234.95,234.85,0.14216157]
[1757928248552,26.66,234.95,234.85,0.14216157]
[1757928249049,48.79559401,234.98,234.85,0.14216157]
[1757928249050,0.66,234.98,234.85,0.84216157]
[1757928249466,26.0,235.0,234.85,0.84216157]
[1757928249754,0.66,234.99,234.85,0.84216157]
[1757928250063,26.0,234.92,234.8,4.31892997]
[1757928250251,0.66,234.91,234.8,14.96628942]
[1757928250559,0.66,234.91,234.81,0.14216157]
[1757928251124,0.66,234.91,234.81,0.84216157]
[1757928251857,26.66,234.91,234.82,14.90503364]
[1757928252036,0.66,234.9,234.81,0.14216157]
[1757928252365,39.59559401,234.89,234.8,0.06]
[1757928252656,0.66,234.88,234.8,0.06]
[1757928253036,0.66,234.88,234.81,4.25872967]
[1757928253334,26.0,234.89,234.81,15.60563567]
[1757928254152,26.0,234.89,234.82,0.7]
[1757928255061,26.0,234.89,234.81,4.25872967]
[1757928255555,26.0,234.89,234.81,14.90563567]
[1757928255929,0.66,234.9,234.82,0.14216157]
[1757928258054,0.66,234.9,234.83,4.25839969]
[1757928258255,14.25559401,234.89,234.81,4.25860187]
[1757928258560,0.66,234.88,234.81,4.25860187]
[1757928258932,26.0,234.86,234.8,0.06]
[1757928259135,13.59559401,234.85,234.8,0.06]
[1757928259450,14.25559401,234.85,234.8,0.06]
[1757928259646,0.66,234.84,234.8,0.06]
[1757928259850,13.59559401,234.85,234.8,0.06]
[1757928259851,0.66,234.83,234.8,0.06]
[1757928260245,0.66,234.82,234.8,0.06]
[1757928261150,14.25559401,234.85,234.8,4.31893147]
[1757928261341,0.66,234.84,234.8,4.31893147]
[1757928261541,0.66,234.83,234.8,4.31893147]
[1757928261759,0.66,234.83,234.82,0.06]
[1757928262757,4.91839969,234.83,234.82,0.06]
[1757928262964,18.5139937,234.83,234.82,0.06]
[1757928263141,14.25559401,234.83,234.82,0.06]
[1757928264670,0.66,234.83,234.82,0.06]
[1757928266350,4.91839969,234.83,234.82,0.06]
[1757928269475,53.4339937,234.83,234.82,0.06]
[1757928270182,18.5139937,234.83,234.82,0.06]
[1757928270476,53.4139937,234.83,234.82,0.06]
[1757928270846,18.5139937,234.83,234.82,0.06]
[1757928271042,53.3939937,234.83,234.82,0.06]
[1757928271669,18.5139937,234.83,234.82,0.06]
[1757928271872,53.3739937,234.83,234.82,0.06]
[1757928272476,3.60481229,234.88,234.82,4.31855023]
[1757928272670,13.59559401,234.87,234.82,0.06]
[1757928273078,13.59559401,234.85,234.82,0.06]
[1757928273378,39.59559401,234.85,234.82,0.06]
[1757928273764,40.27559401,234.85,234.82,0.06]
[1757928274368,4.25821836,234.84,234.82,0.06]
[1757928274572,39.59559401,234.83,234.82,0.06]
[1757928274781,40.27559401,234.83,234.82,0.06]
[1757928276563,44.5339937,234.83,234.82,0.06]
[1757928277478,79.3539937,234.83,234.82,0.06]
[1757928278276,49.53132718,234.83,234.82,1e-08]
[1757928278475,84.35132718,234.83,234.8,0.06]
[1757928278682,49.09559401,234.82,234.8,0.06]
[1757928278856,48.41559401,234.81,234.8,0.06]
[1757928279053,49.09559401,234.81,234.8,0.06]
[1757928279682,17.85435641,234.81,234.8,0.06]
[1757928280077,13.59559401,234.81,234.8,0.06]
[1757928280369,13.59559401,234.81,234.8,0.71]
[1757928280965,13.59559401,234.85,234.8,0.71]
[1757928281354,13.59559401,234.85,234.81,0.65]
[1757928281558,13.59559401,234.86,234.82,0.65]
[1757928281779,13.59559401,234.86,234.83,0.65]
[1757928282281,39.59559401,234.86,234.83,0.65]
[1757928282667,43.85345712,234.86,234.83,0.65]
[1757928282882,17.85345712,234.86,234.81,0.65]
[1757928283083,43.85345712,234.86,234.82,0.65]
[1757928284859,54.49809647,234.86,234.8,0.06]
[1757928285184,55.17809647,234.86,234.8,0.06]
[1757928285359,44.53345712,234.86,234.8,0.06]
[1757928286687,13.59559401,234.9,234.81,0.65]
[1757928287184,13.59559401,234.86,234.81,0.65]
[1757928288084,0.68,234.85,234.8,0.06]
[1757928289162,13.59559401,234.83,234.8,0.06]
[1757928290589,13.59559401,234.85,234.81,0.66]
[1757928290959,26.0,234.87,234.81,0.66]
[1757928291160,17.85309444,234.88,234.82,4.25858104]
[1757928291387,26.0,234.87,234.83,0.66]
[1757928291883,13.59559401,234.89,234.84,0.66]
[1757928292085,13.59559401,234.89,234.85,0.66]
[1757928292266,13.59559401,234.87,234.85,0.66]
[1757928293290,136.75711168,234.91,234.81,10.64675728]
[1757928293469,13.59559401,234.9,234.85,0.66]
[1757928293866,26.0,234.88,234.8,0.06]
[1757928294087,13.59559401,234.87,234.8,0.72]
[1757928294882,13.59559401,234.87,234.8,4.97891751]
[1757928295069,13.59559401,234.87,234.81,0.66]
[1757928295271,13.59559401,234.87,234.82,4.25858104]
[1757928295471,17.85333598,234.87,234.82,4.25858104]
[1757928295779,17.85333598,234.87,234.8,4.97890479]
[1757928296091,26.0,234.88,234.81,0.66]
[1757928297070,0.71,234.93,234.81,0.66]
[1757928297071,13.59559401,234.95,234.81,0.66]
[1757928297274,21.52524001,234.95,234.82,14.90503364]
[1757928297487,21.52524001,234.95,234.83,0.66]
[1757928297872,13.59559401,234.92,234.83,0.66]
[1757928298473,13.59559401,234.92,234.84,4.25821836]
[1757928298773,13.59559401,234.92,234.85,0.66]
[1757928299089,17.85239188,234.92,234.85,0.66]
[1757928299285,17.852433,234.92,234.85,0.66]
[1757928299668,13.59559401,234.92,234.85,0.66]
[1757928300568,13.59559401,234.92,234.86,14.90249509]
[1757928300777,13.59559401,234.95,234.87,0.66]
[1757928301385,0.71,235.15,234.94,0.14216157]
[1757928301586,12.80054615,235.11,234.96,0.14216157]
[1757928301778,12.80054615,235.11,234.97,39.00750269]
[1757928301976,26.0,235.12,234.99,0.14216157]
[1757928302290,0.7,235.13,235.01,0.14216157]
[1757928302489,0.7,235.18,235.02,3.86750269]
[1757928302691,13.59559401,235.11,234.97,24.0]
[1757928302897,13.59559401,235.09,234.99,0.69]
[1757928303394,13.59559401,235.07,234.96,4.25604358]
[1757928303798,13.59559401,235.05,234.95,2.30308472]
[1757928303991,13.59559401,235.03,234.95,2.30308472]
[1757928304295,0.03,234.97,234.95,2.30308472]
[1757928304992,13.62559401,234.97,234.95,2.30308472]
[1757928305200,0.03,234.97,234.95,2.30308472]
[1757928305889,0.03,234.97,234.95,2.99308472]
[1757928306081,0.03,234.97,234.96,0.69]
[1757928307083,0.03,234.97,234.96,0.83216157]
[1757928307483,38.85946421,235.15,234.98,0.14216157]
[1757928307786,13.59559401,235.1,234.99,0.69]
[1757928308175,0.7,235.1,234.99,0.69]
[1757928308506,13.59559401,235.09,234.99,0.69]
[1757928309302,17.8493858,235.09,235.0,4.25531914]
[1757928309484,17.8493858,235.09,234.99,0.69]
[1757928309681,13.59559401,235.07,234.95,0.69]
[1757928309882,13.59559401,235.07,234.94,4.25624945]
[1757928310193,13.59559401,235.03,234.92,4.25668174]
[1757928310400,14.29559401,235.03,234.92,4.94668174]
[1757928311105,4.25531914,235.0,234.9,0.14216157]
[1757928311278,13.59559401,234.99,234.89,4.25731193]
[1757928311478,13.59559401,234.99,234.89,14.90059176]
[1757928311873,26.0,235.0,234.89,4.25731193]
[1757928312181,14.29559401,234.98,234.85,30.92]
[1757928312383,13.59559401,234.96,234.85,30.92]
[1757928312905,13.59559401,234.96,234.86,14.90249509]
[1757928313092,4.25640589,234.94,234.86,4.25785574]
[1757928313281,0.7,234.95,234.86,4.25785574]
[1757928313695,13.59559401,234.94,234.86,4.25785574]
[1757928313882,13.59559401,234.94,234.85,30.92]
[1757928314509,0.7,234.93,234.85,30.92]
[1757928315194,0.7,234.93,234.85,35.17799352]
[1757928316013,13.59559401,234.94,234.86,0.69]